[Event "23rd European Women Club Cup 2018"]
[Site "Halkidiki"]
[Date "2018.10.17"]
[Round "6"]
[White "Zhukova, Natalia"]
[Black "Paehtz, Elisabeth"]
[Result "1/2-1/2"]
[ECO "A21"]
[WhiteElo "2403"]
[BlackElo "2513"]
[Annotator "ChessBase"]
[PlyCount "118"]
[EventDate "2018.10.12"]
[EventType "team-tourn"]
[EventCountry "GRE"]
[SourceTitle "playchess.com"]
[Source "ChessBase"]
[SourceQuality "1"]
[WhiteTeam "Kyiv"]
[BlackTeam "Pentole Agnelli"]
[TimeControl "40/5400+30:1800+30"]

1. c4 {[%emt 0:00:00]} d6 {[%emt 0:00:57]} 2. Nc3 {[%emt 0:01:00]} e5 {[%emt 0:00:14]} 3. Nf3 {[%emt 0:00:49]} g6 {[%emt 0:00:08]} 4. d4 {[%emt 0:00:47]} Bg7 {[%emt 0:00:02]} 5. e4 {[%emt 0:00:58]} Bg4 {[%emt 0:00:04]} 6. dxe5 {[%emt 0:05:24]} dxe5 {[%emt 0:00:09]} 7. Qxd8+ {[%emt 0:00:10]} Kxd8 {[%emt 0:00:02]} 8. Ng5 {[%emt 0:02:42]} Nh6 {[%emt 0:01:02]} 9. h3 {[%emt 0:00:20]} Bd7 {[%emt 0:00:43]} 10. Be3 {[%emt 0:07:59]} f6 {[%emt 0:00:22]} 11. Nf3 {[%emt 0:00:09]} Nf7 {[%emt 0:00:39]} 12. O-O-O {[%emt 0:19:15]} c6 {[%emt 0:01:05]} 13. Be2 {[%emt 0:01:20]} Ke7 {[%emt 0:13:24]} 14. Ne1 {[%emt 0:10:41]} Be6 {[%emt 0:10:39]} 15. g3 {[%emt 0:04:41]} Na6 {[%emt 0:07:20]} 16. b3 {[%emt 0:08:58]} Bh6 {[%emt 0:12:25]} 17. f4 {[%emt 0:01:19]} Rhd8 {[%emt 0:04:55]} 18. Rxd8 {[%emt 0:00:21]} Rxd8 {[%emt 0:03:08]} 19. Nd3 {[%emt 0:11:24]} exf4 {[%emt 0:04:10]} 20. gxf4 {[%emt 0:00:37]} Ne5 {[%emt 0:01:10]} 21. Nf2 {[%emt 0:00:13]} f5 {[%emt 0:06:10]} 22. h4 {[%emt 0:04:34]} Nf7 {[%emt 0:01:00]} 23. h5 {[%emt 0:01:34]} g5 {[%emt 0:05:33]} 24. Nh3 {[%emt 0:05:42]} Bg7 {[%emt 0:04:08]} 25. Nd1 {[%emt 0:03:23]} gxf4 {[%emt 0:05:46]} 26. Nxf4 {[%emt 0:00:41]} fxe4 {[%emt 0:02:17]} 27. Nxe6 {[%emt 0:01:11]} Kxe6 {[%emt 0:00:03]} 28. Bg4+ {[%emt 0:01:14]} Ke7 {[%emt 0:00:37]} 29. Bf5 {[%emt 0:02:16]} h6 {[%emt 0:00:42]} 30. Bxe4 {[%emt 0:00:03]} Bd4 {[%emt 0:00:06]} 31. Bg6 {[%emt 0:01:30]} Ng5 {[%emt 0:06:37]} 32. Bxd4 {[%emt 0:00:21]} Rxd4 {[%emt 0:00:10]} 33. Ne3 {[%emt 0:00:02]} Rf4 {[%emt 0:01:04]} 34. Nf5+ {[%emt 0:00:37]} Kf6 {[%emt 0:00:23]} 35. Nxh6 {[%emt 0:00:14]} Nb4 {[%emt 0:00:08]} 36. a3 {[%emt 0:03:18]} Na6 {[%emt 0:00:46]} 37. Rg1 {[%emt 0:01:37]} Nf3 {[%emt 0:00:50]} 38. Rg3 {[%emt 0:00:52]} Ne5 {[%emt 0:02:25]} 39. Bc2 {[%emt 0:00:17]} Rh4 {[%emt 0:03:07]} 40. Ng8+ {[%emt 0:00:00]} Ke6 {[%emt 0:00:00]} 41. h6 {[%emt 0:00:45]} Nc5 {[%emt 0:01:31]} 42. h7 {[%emt 0:10:39]} a5 {[%emt 0:03:59]} 43. b4 {[%emt 0:06:31]} axb4 {[%emt 0:01:26]} 44. axb4 {[%emt 0:00:01]} Na6 {[%emt 0:06:02]} 45. Rg7 {[%emt 0:03:20]} Nxb4 {[%emt 0:06:40]} 46. Re7+ {[%emt 0:01:15]} Kd6 {[%emt 0:00:06]} 47. Bf5 {[%emt 0:03:27]} Rh1+ {[%emt 0:05:49]} 48. Kd2 {[%emt 0:00:59]} Nf3+ {[%emt 0:01:03]} 49. Kc3 {[%emt 0:08:01]} Na2+ {[%emt 0:00:22]} 50. Kb2 {[%emt 0:00:11]} Rh2+ {[%emt 0:00:51]} 51. Bc2 {[%emt 0:01:11]} Nb4 {[%emt 0:00:13]} 52. Re2 {[%emt 0:00:22]} Rxe2 {[%emt 0:00:59]} 53. h8=Q {[%emt 0:00:05]} Nxc2 {[%emt 0:01:29]} 54. Qf6+ {[%emt 0:01:09]} Kc5 {[%emt 0:01:54]} 55. Kc3 {[%emt 0:00:01]} Ncd4 {[%emt 0:00:56]} 56. Qf8+ {[%emt 0:00:02]} Kb6 {[%emt 0:00:05]} 57. Kd3 {[%emt 0:01:19]} Rd2+ {[%emt 0:00:30]} 58. Ke3 {[%emt 0:00:15]} Re2+ {[%emt 0:01:30]} 59. Kd3 {[%emt 0:00:01]} Rd2+ {[%emt 0:01:32]} 1/2-1/2

[Event "23rd European Women Club Cup 2018"]
[Site "Halkidiki"]
[Date "2018.10.17"]
[Round "6"]
[White "Mammadova, Gulnar"]
[Black "Kumanska, Olena"]
[Result "1-0"]
[ECO "B40"]
[WhiteElo "2355"]
[BlackElo "2054"]
[Annotator "NA"]
[PlyCount "71"]
[EventDate "2018.10.12"]
[EventType "team-tourn"]
[EventCountry "GRE"]
[SourceTitle "playchess.com"]
[Source "ChessBase"]
[SourceQuality "1"]
[WhiteTeam "Odlar Yurdu"]
[BlackTeam "Beer Sheva"]
[TimeControl "40/5400+30:1800+30"]

1. e4 {[%emt 0:00:00]} c5 {[%emt 0:00:00]} 2. Nf3 {[%emt 0:00:00]} e6 {[%emt 0:00:00]} 3. b3 {[%emt 0:00:00]} b6 {[%emt 0:00:23]} 4. Bd3 {[%emt 0:00:02]} Bb7 {[%emt 0:00:16]} 5. O-O {[%emt 0:00:07]} d6 {[%emt 0:01:11]} 6. Bb2 {[%emt 0:01:01]} Nf6 {[%emt 0:00:42]} 7. e5 {[%emt 0:02:02]} dxe5 {[%emt 0:01:44]} 8. Nxe5 {[%emt 0:00:30]} a6 {[%emt 0:05:25]} 9. Qe2 {[%emt 0:03:14]} Be7 {[%emt 0:02:46]} 10. Nc3 {[%emt 0:01:47]} O-O {[%emt 0:01:07]} 11. Rae1 {[%emt 0:02:52]} Nbd7 {[%emt 0:06:44]} 12. f4 {[%emt 0:03:17]} g6 {[%emt 0:01:22]} 13. Nxd7 {[%emt 0:09:03]} Nxd7 {[%emt 0:04:35]} 14. f5 {[%emt 0:01:40]} e5 {[%emt 0:00:44]} 15. Ne4 {[%emt 0:04:06]} b5 {[%emt 0:05:02]} 16. Kh1 {[%emt 0:05:47]} Qb6 {[%emt 0:00:51]} 17. c4 {[%emt 0:01:32]} b4 {[%emt 0:10:30]} 18. Qf2 {[%emt 0:05:54]} Rad8 {[%emt 0:05:37]} 19. Qg3 {[%emt 0:05:08]} Bxe4 {[%emt 0:05:28]} 20. Bxe4 {[%emt 0:00:37]} Qd6 {[%emt 0:12:52]} 21. Bd5 {[%emt 0:03:37]} Kg7 {[%emt 0:02:06]} 22. d3 {[%emt 0:07:26]} f6 {[%emt 0:00:55]} 23. h4 {[%emt 0:06:51]} a5 {[%emt 0:05:29]} 24. fxg6 {[%emt 0:02:30]} h6 {[%emt 0:00:17]} 25. Rf5 {[%emt 0:01:08]} Nb6 {[%emt 0:02:11]} 26. Be4 {[%emt 0:03:03]} Nd7 {[%emt 0:00:36]} 27. Rh5 {[%emt 0:00:44]} Rh8 {[%emt 0:00:35]} 28. Bc1 {[%emt 0:00:06]} f5 {[%emt 0:04:44]} 29. Rxf5 {[%emt 0:00:34]} Rdf8 {[%emt 0:01:46]} 30. Rh5 {[%emt 0:02:57]} Nf6 {[%emt 0:10:37]} 31. Qxe5 {[%emt 0:02:49]} Qxe5 {[%emt 0:00:22]} 32. Rxe5 {[%emt 0:00:03]} Bd6 {[%emt 0:00:06]} 33. Re6 {[%emt 0:00:09]} Nxe4 {[%emt 0:01:42]} 34. R6xe4 {[%emt 0:00:47]} Bg3 {[%emt 0:00:38]} 35. Bb2+ {[%emt 0:00:18]} Kxg6 {[%emt 0:00:24]} 36. Rg4+ {[%emt 0:00:09]} 1-0

[Event "23rd European Women Club Cup 2018"]
[Site "Halkidiki"]
[Date "2018.10.17"]
[Round "6"]
[White "Belenkaya, Dina"]
[Black "Javakhishvili, Lela"]
[Result "0-1"]
[ECO "B22"]
[WhiteElo "2329"]
[BlackElo "2475"]
[Annotator "ChessBase"]
[PlyCount "82"]
[EventDate "2018.10.12"]
[EventType "team-tourn"]
[EventCountry "GRE"]
[SourceTitle "playchess.com"]
[Source "ChessBase"]
[SourceQuality "1"]
[WhiteTeam "SSHOR"]
[BlackTeam "Nona"]
[TimeControl "40/5400+30:1800+30"]

1. e4 {[%emt 0:00:00]} c5 {[%emt 0:00:00]} 2. c3 {[%emt 0:00:00]} Nf6 {[%emt 0:00:00]} 3. e5 {[%emt 0:00:00]} Nd5 {[%emt 0:00:00]} 4. Nf3 {[%emt 0:00:15]} e6 {[%emt 0:00:28]} 5. d4 {[%emt 0:00:24]} cxd4 {[%emt 0:00:05]} 6. cxd4 {[%emt 0:00:10]} d6 {[%emt 0:00:05]} 7. a3 {[%emt 0:02:26]} Bd7 {[%emt 0:00:43]} 8. Bd3 {[%emt 0:01:07]} Bc6 {[%emt 0:00:49]} 9. O-O {[%emt 0:01:27]} Nd7 {[%emt 0:00:26]} 10. b4 {[%emt 0:05:05]} a6 {[%emt 0:00:07]} 11. Nbd2 {[%emt 0:01:28]} Nc3 {[%emt 0:02:09]} 12. Qb3 {[%emt 0:05:23]} Rc8 {[%emt 0:00:13]} 13. exd6 {[%emt 0:16:52]} Bd5 {[%emt 0:10:06]} 14. Bc4 {[%emt 0:12:37]} Ne2+ {[%emt 0:13:51]} 15. Kh1 {[%emt 0:00:40]} Rxc4 {[%emt 0:00:23]} 16. Nxc4 {[%emt 0:00:08]} b5 {[%emt 0:06:34]} 17. Be3 {[%emt 0:15:30]} Qa8 {[%emt 0:06:58]} 18. Nh4 {[%emt 0:05:34]} Bxc4 {[%emt 0:04:42]} 19. Qc2 {[%emt 0:01:23]} Bxd6 {[%emt 0:04:10]} 20. f4 {[%emt 0:06:58]} Qd8 {[%emt 0:03:23]} 21. g3 {[%emt 0:01:17]} Qa8+ {[%emt 0:04:55]} 22. Nf3 {[%emt 0:05:37]} Nf6 {[%emt 0:06:16]} 23. Rae1 {[%emt 0:02:38]} Nd5 {[%emt 0:04:40]} 24. Qd2 {[%emt 0:07:03]} Nec3 {[%emt 0:03:13]} 25. Rg1 {[%emt 0:00:49]} Nxf4 {[%emt 0:03:32]} 26. gxf4 {[%emt 0:05:14]} Qxf3+ {[%emt 0:00:07]} 27. Rg2 {[%emt 0:00:05]} Nd5 {[%emt 0:03:27]} 28. Qf2 {[%emt 0:01:50]} Qxf2 {[%emt 0:00:41]} 29. Rxf2 {[%emt 0:00:04]} Nxe3 {[%emt 0:00:15]} 30. Rxe3 {[%emt 0:00:05]} f5 {[%emt 0:01:42]} 31. Kg1 {[%emt 0:00:21]} Kf7 {[%emt 0:00:17]} 32. Rh3 {[%emt 0:00:22]} h6 {[%emt 0:00:50]} 33. Kg2 {[%emt 0:01:34]} Bd5+ {[%emt 0:00:21]} 34. Kf1 {[%emt 0:00:21]} Rc8 {[%emt 0:00:13]} 35. Ke1 {[%emt 0:00:48]} Rc1+ {[%emt 0:00:45]} 36. Kd2 {[%emt 0:00:07]} Ra1 {[%emt 0:01:18]} 37. Rc3 {[%emt 0:00:24]} Ra2+ {[%emt 0:00:29]} 38. Ke3 {[%emt 0:00:11]} Rxf2 {[%emt 0:00:16]} 39. Kxf2 {[%emt 0:00:07]} Bxf4 {[%emt 0:00:10]} 40. h3 {[%emt 0:00:00]} g5 {[%emt 0:00:00]} 41. Rc8 {[%emt 0:01:57]} g4 {[%emt 0:00:37]} 0-1

[Event "23rd European Women Club Cup 2018"]
[Site "Halkidiki"]
[Date "2018.10.17"]
[Round "6"]
[White "Babiy, Olga"]
[Black "Tsolakidou, Stavroula"]
[Result "0-1"]
[ECO "B90"]
[WhiteElo "2310"]
[BlackElo "2393"]
[Annotator "ChessBase"]
[PlyCount "138"]
[EventDate "2018.10.12"]
[EventType "team-tourn"]
[EventCountry "GRE"]
[SourceTitle "playchess.com"]
[Source "ChessBase"]
[SourceQuality "1"]
[WhiteTeam "Kyiv"]
[BlackTeam "Pentole Agnelli"]
[TimeControl "40/5400+30:1800+30"]

1. e4 {[%emt 0:00:00]} c5 {[%emt 0:00:00]} 2. Nf3 {[%emt 0:00:00]} d6 {[%emt 0:00:00]} 3. d4 {[%emt 0:00:00]} cxd4 {[%emt 0:00:00]} 4. Nxd4 {[%emt 0:00:00]} Nf6 {[%emt 0:00:00]} 5. Nc3 {[%emt 0:00:00]} a6 {[%emt 0:00:00]} 6. Be3 {[%emt 0:00:00]} e5 {[%emt 0:00:02]} 7. Nf3 {[%emt 0:00:09]} Qc7 {[%emt 0:00:21]} 8. a4 {[%emt 0:00:39]} Be7 {[%emt 0:00:13]} 9. Be2 {[%emt 0:00:27]} Nbd7 {[%emt 0:01:20]} 10. O-O {[%emt 0:01:42]} Nc5 {[%emt 0:00:36]} 11. Nd2 {[%emt 0:00:31]} Be6 {[%emt 0:00:34]} 12. Bf3 {[%emt 0:04:58]} O-O {[%emt 0:00:41]} 13. a5 {[%emt 0:01:39]} Ncd7 {[%emt 0:06:30]} 14. Qe2 {[%emt 0:02:09]} h6 {[%emt 0:17:48]} 15. Rfd1 {[%emt 0:04:42]} Rfe8 {[%emt 0:02:09]} 16. h3 {[%emt 0:02:17]} Bf8 {[%emt 0:04:12]} 17. Ra4 {[%emt 0:05:26]} Rac8 {[%emt 0:02:29]} 18. Qe1 {[%emt 0:04:22]} Qc6 {[%emt 0:10:05]} 19. Nf1 {[%emt 0:07:32]} Bc4 {[%emt 0:09:21]} 20. Nd2 {[%emt 0:10:36]} Be6 {[%emt 0:00:50]} 21. Nf1 {[%emt 0:02:00]} Qc7 {[%emt 0:06:39]} 22. Bc1 {[%emt 0:06:10]} Ra8 {[%emt 0:11:04]} 23. b3 {[%emt 0:11:43]} b5 {[%emt 0:07:28]} 24. axb6 {[%emt 0:00:13]} Nxb6 {[%emt 0:00:05]} 25. Ra2 {[%emt 0:02:14]} a5 {[%emt 0:01:27]} 26. Be3 {[%emt 0:05:37]} Bd7 {[%emt 0:08:02]} 27. Rda1 {[%emt 0:06:05]} Rec8 {[%emt 0:05:42]} 28. Bxb6 {[%emt 0:02:11]} Qxb6 {[%emt 0:00:14]} 29. Ne3 {[%emt 0:00:24]} Qb4 {[%emt 0:03:25]} 30. Ncd5 {[%emt 0:05:54]} Nxd5 {[%emt 0:00:56]} 31. Nxd5 {[%emt 0:00:10]} Qxe1+ {[%emt 0:02:42]} 32. Rxe1 {[%emt 0:00:06]} Rab8 {[%emt 0:00:06]} 33. Bg4 {[%emt 0:02:26]} Be6 {[%emt 0:00:18]} 34. Ne3 {[%emt 0:00:07]} Rb4 {[%emt 0:00:46]} 35. f3 {[%emt 0:09:18]} Rc5 {[%emt 0:00:04]} 36. Rea1 {[%emt 0:00:38]} Rc3 {[%emt 0:00:22]} 37. Kf2 {[%emt 0:04:22]} Be7 {[%emt 0:00:39]} 38. Bxe6 {[%emt 0:01:38]} fxe6 {[%emt 0:00:06]} 39. Ke2 {[%emt 0:00:13]} Bg5 {[%emt 0:01:11]} 40. Nc4 {[%emt 0:00:00]} a4 {[%emt 0:00:00]} 41. Rxa4 {[%emt 0:09:15]} Rxa4 {[%emt 0:09:06]} 42. Rxa4 {[%emt 0:00:02]} Rxc2+ {[%emt 0:00:18]} 43. Kf1 {[%emt 0:03:54]} Rc1+ {[%emt 0:04:02]} 44. Ke2 {[%emt 0:00:06]} Rc2+ {[%emt 0:00:11]} 45. Kf1 {[%emt 0:00:14]} h5 {[%emt 0:09:42]} 46. Nxd6 {[%emt 0:05:44]} Be3 {[%emt 0:00:59]} 47. Ra8+ {[%emt 0:01:43]} Kh7 {[%emt 0:00:05]} 48. Nf7 {[%emt 0:00:58]} Rf2+ {[%emt 0:02:40]} 49. Ke1 {[%emt 0:00:01]} Rxg2 {[%emt 0:00:09]} 50. Nxe5 {[%emt 0:02:07]} Rh2 {[%emt 0:02:20]} 51. Re8 {[%emt 0:04:03]} Rxh3 {[%emt 0:01:20]} 52. Ke2 {[%emt 0:02:05]} Bf4 {[%emt 0:02:03]} 53. Rxe6 {[%emt 0:00:24]} Rh2+ {[%emt 0:00:20]} 54. Kf1 {[%emt 0:01:03]} h4 {[%emt 0:01:44]} 55. Ng4 {[%emt 0:01:44]} Rb2 {[%emt 0:00:12]} 56. Nf2 {[%emt 0:00:12]} Be3 {[%emt 0:00:50]} 57. Ng4 {[%emt 0:03:31]} h3 {[%emt 0:00:47]} 58. Re5 {[%emt 0:00:15]} Kg6 {[%emt 0:00:38]} 59. Re6+ {[%emt 0:01:20]} Kf7 {[%emt 0:00:24]} 60. Re5 {[%emt 0:00:54]} Kg6 {[%emt 0:01:55]} 61. Re6+ {[%emt 0:00:27]} Kh5 {[%emt 0:00:15]} 62. Re5+ {[%emt 0:01:27]} Bg5 {[%emt 0:01:57]} 63. f4 {[%emt 0:00:48]} Kxg4 {[%emt 0:00:29]} 64. Rxg5+ {[%emt 0:00:01]} Kxf4 {[%emt 0:00:34]} 65. Rf5+ {[%emt 0:01:00]} Kxe4 {[%emt 0:00:20]} 66. Rh5 {[%emt 0:00:29]} h2 {[%emt 0:00:05]} 67. b4 {[%emt 0:00:23]} g5 {[%emt 0:00:16]} 68. b5 {[%emt 0:00:14]} Kf3 {[%emt 0:00:10]} 69. Rh3+ {[%emt 0:00:15]} Kg4 {[%emt 0:00:04]} 0-1

[Event "23rd European Women Club Cup 2018"]
[Site "Halkidiki"]
[Date "2018.10.17"]
[Round "6"]
[White "Klinova, Masha"]
[Black "Balajayeva, Khanim"]
[Result "0-1"]
[ECO "C55"]
[WhiteElo "2288"]
[BlackElo "2326"]
[Annotator "NA"]
[PlyCount "100"]
[EventDate "2018.10.12"]
[EventType "team-tourn"]
[EventCountry "GRE"]
[SourceTitle "playchess.com"]
[Source "ChessBase"]
[SourceQuality "1"]
[WhiteTeam "Beer Sheva"]
[BlackTeam "Odlar Yurdu"]
[TimeControl "40/5400+30:1800+30"]

1. e4 {[%emt 0:00:00]} e5 {[%emt 0:00:00]} 2. Nf3 {[%emt 0:00:00]} Nc6 {[%emt 0:00:00]} 3. Bc4 {[%emt 0:00:00]} Nf6 {[%emt 0:00:00]} 4. d3 {[%emt 0:00:00]} Be7 {[%emt 0:00:00]} 5. O-O {[%emt 0:00:05]} O-O {[%emt 0:00:00]} 6. Bb3 {[%emt 0:08:03]} d6 {[%emt 0:02:09]} 7. c3 {[%emt 0:01:32]} Na5 {[%emt 0:04:04]} 8. Bc2 {[%emt 0:00:46]} c5 {[%emt 0:00:08]} 9. Nbd2 {[%emt 0:00:43]} Nc6 {[%emt 0:03:56]} 10. Re1 {[%emt 0:01:14]} Re8 {[%emt 0:06:10]} 11. Nf1 {[%emt 0:02:10]} h6 {[%emt 0:00:59]} 12. Ng3 {[%emt 0:00:30]} a6 {[%emt 0:01:34]} 13. h3 {[%emt 0:01:39]} Be6 {[%emt 0:00:43]} 14. d4 {[%emt 0:03:47]} cxd4 {[%emt 0:00:05]} 15. cxd4 {[%emt 0:00:04]} exd4 {[%emt 0:01:00]} 16. Nxd4 {[%emt 0:01:15]} Nxd4 {[%emt 0:00:02]} 17. Qxd4 {[%emt 0:00:06]} Rc8 {[%emt 0:00:05]} 18. Bb3 {[%emt 0:01:17]} d5 {[%emt 0:04:23]} 19. e5 {[%emt 0:04:14]} Bc5 {[%emt 0:05:41]} 20. Qf4 {[%emt 0:04:06]} Ne4 {[%emt 0:10:03]} 21. Nxe4 {[%emt 0:03:05]} dxe4 {[%emt 0:00:02]} 22. Bxe6 {[%emt 0:03:06]} Rxe6 {[%emt 0:01:46]} 23. Be3 {[%emt 0:11:16]} Bxe3 {[%emt 0:00:56]} 24. Rxe3 {[%emt 0:01:42]} Qd2 {[%emt 0:00:43]} 25. Qxe4 {[%emt 0:05:20]} Qxb2 {[%emt 0:00:51]} 26. Rb1 {[%emt 0:04:54]} Rc1+ {[%emt 0:01:54]} 27. Rxc1 {[%emt 0:02:22]} Qxc1+ {[%emt 0:00:03]} 28. Re1 {[%emt 0:01:03]} Qc6 {[%emt 0:00:24]} 29. f4 {[%emt 0:04:26]} Qxe4 {[%emt 0:03:22]} 30. Rxe4 {[%emt 0:00:07]} f6 {[%emt 0:01:14]} 31. Kf2 {[%emt 0:02:04]} fxe5 {[%emt 0:00:27]} 32. fxe5 {[%emt 0:00:13]} Kf7 {[%emt 0:00:26]} 33. Kf3 {[%emt 0:01:34]} Rc6 {[%emt 0:01:05]} 34. a4 {[%emt 0:16:48]} b5 {[%emt 0:08:20]} 35. axb5 {[%emt 0:00:52]} axb5 {[%emt 0:00:02]} 36. Re2 {[%emt 0:05:54]} Ke6 {[%emt 0:00:35]} 37. h4 {[%emt 0:02:48]} b4 {[%emt 0:04:53]} 38. Rb2 {[%emt 0:01:59]} Rc3+ {[%emt 0:01:17]} 39. Kg4 {[%emt 0:01:27]} b3 {[%emt 0:01:21]} 40. Kh5 {[%emt 0:00:00]} Kxe5 {[%emt 0:00:00]} 41. g4 {[%emt 0:01:37]} Kd4 {[%emt 0:04:25]} 42. Rf2 {[%emt 0:05:53]} Rg3 {[%emt 0:01:03]} 43. Rf7 {[%emt 0:01:29]} b2 {[%emt 0:00:10]} 44. Rb7 {[%emt 0:00:15]} Kc3 {[%emt 0:00:12]} 45. Rc7+ {[%emt 0:00:22]} Kd2 {[%emt 0:00:07]} 46. Rb7 {[%emt 0:00:49]} Kc2 {[%emt 0:00:03]} 47. Rc7+ {[%emt 0:00:19]} Rc3 {[%emt 0:00:10]} 48. Rb7 {[%emt 0:00:09]} Rb3 {[%emt 0:00:03]} 49. Rc7+ {[%emt 0:00:08]} Kd2 {[%emt 0:00:18]} 50. Rd7+ {[%emt 0:00:05]} Ke2 {[%emt 0:00:03]} 0-1

[Event "23rd European Women Club Cup 2018"]
[Site "Halkidiki"]
[Date "2018.10.17"]
[Round "6"]
[White "Injac, Teodora"]
[Black "Grapsa, Georgia"]
[Result "0-1"]
[ECO "B90"]
[WhiteElo "2258"]
[BlackElo "2085"]
[Annotator "NA"]
[PlyCount "78"]
[EventDate "2018.10.12"]
[EventType "team-tourn"]
[EventCountry "GRE"]
[SourceTitle "playchess.com"]
[Source "ChessBase"]
[SourceQuality "1"]
[WhiteTeam "Maribor"]
[BlackTeam "Thessaloniki"]
[TimeControl "40/5400+30:1800+30"]

1. e4 {[%emt 0:00:00]} c5 {[%emt 0:00:00]} 2. Nf3 {[%emt 0:00:00]} d6 {[%emt 0:00:00]} 3. d4 {[%emt 0:00:00]} cxd4 {[%emt 0:00:00]} 4. Nxd4 {[%emt 0:00:03]} Nf6 {[%emt 0:00:00]} 5. Nc3 {[%emt 0:00:09]} a6 {[%emt 0:00:00]} 6. h3 {[%emt 0:00:09]} e6 {[%emt 0:00:00]} 7. g4 {[%emt 0:01:00]} h6 {[%emt 0:00:00]} 8. Bg2 {[%emt 0:03:10]} Be7 {[%emt 0:00:53]} 9. Be3 {[%emt 0:01:05]} Nc6 {[%emt 0:00:13]} 10. Qe2 {[%emt 0:03:12]} Nxd4 {[%emt 0:01:59]} 11. Bxd4 {[%emt 0:00:08]} e5 {[%emt 0:00:03]} 12. Be3 {[%emt 0:00:11]} b5 {[%emt 0:00:27]} 13. O-O-O {[%emt 0:06:13]} b4 {[%emt 0:04:01]} 14. Nd5 {[%emt 0:00:49]} Nxd5 {[%emt 0:00:04]} 15. exd5 {[%emt 0:00:23]} O-O {[%emt 0:03:12]} 16. Be4 {[%emt 0:07:59]} Bh4 {[%emt 0:08:18]} 17. Kb1 {[%emt 0:06:26]} a5 {[%emt 0:22:35]} 18. Rdg1 {[%emt 0:00:59]} f6 {[%emt 0:04:55]} 19. Rc1 {[%emt 0:29:43]} Bd7 {[%emt 0:03:43]} 20. c4 {[%emt 0:00:07]} bxc3 {[%emt 0:01:51]} 21. Rxc3 f5 {[%emt 0:00:04]} 22. gxf5 {[%emt 0:01:01]} Bxf5 {[%emt 0:00:58]} 23. Bxf5 {[%emt 0:13:42]} Rxf5 {[%emt 0:02:11]} 24. Qg4 {[%emt 0:07:40]} Qf6 {[%emt 0:03:09]} 25. Bxh6 {[%emt 0:06:26]} Rxf2 {[%emt 0:02:30]} 26. Bxg7 Qf5+ {[%emt 0:00:02]} 27. Qxf5 {[%emt 0:01:18]} Rxf5 {[%emt 0:01:25]} 28. Rg1 {[%emt 0:03:47]} Bf2 {[%emt 0:04:20]} 29. Rg2 Kh7 30. Rc2 {[%emt 0:08:25]} Bc5 {[%emt 0:03:10]} 31. b4 {[%emt 0:00:42]} axb4 {[%emt 0:00:08]} 32. Rg4 {[%emt 0:00:17]} Bd4 {[%emt 0:06:13]} 33. Rc4 {[%emt 0:00:55]} Rf1+ {[%emt 0:01:37]} 34. Rc1 {[%emt 0:00:27]} Rxc1+ {[%emt 0:00:16]} 35. Kxc1 {[%emt 0:00:04]} Rxa2 {[%emt 0:00:16]} 36. Bf8 {[%emt 0:00:40]} b3 {[%emt 0:01:31]} 37. Rg7+ {[%emt 0:00:14]} Kh8 {[%emt 0:00:05]} 38. Rb7 {[%emt 0:00:11]} Ra1+ {[%emt 0:00:12]} 39. Kd2 {[%emt 0:00:10]} b2 {[%emt 0:00:08]} 0-1

[Event "23rd European Women Club Cup 2018"]
[Site "Halkidiki"]
[Date "2018.10.17"]
[Round "6"]
[White "Injac, Teodora"]
[Black "Grapsa, Georgia"]
[Result "1-0"]
[ECO "E12"]
[WhiteElo "2258"]
[BlackElo "2085"]
[Annotator "NA"]
[PlyCount "67"]
[EventDate "2018.10.12"]
[EventType "team-tourn"]
[EventCountry "GRE"]
[SourceTitle "playchess.com"]
[Source "ChessBase"]
[SourceQuality "1"]
[WhiteTeam "Maribor"]
[BlackTeam "Thessaloniki"]
[TimeControl "40/5400+30:1800+30"]

1. d4 {[%emt 0:00:00]} Nf6 {[%emt 0:02:48]} 2. Nf3 {[%emt 0:00:15]} b6 {[%emt 0:00:03]} 3. c4 {[%emt 0:00:07]} e6 {[%emt 0:00:02]} 4. a3 {[%emt 0:00:16]} Ba6 {[%emt 0:00:02]} 5. Qc2 {[%emt 0:00:18]} Bb7 {[%emt 0:00:27]} 6. Nc3 {[%emt 0:00:23]} c5 {[%emt 0:00:02]} 7. e4 {[%emt 0:03:28]} cxd4 {[%emt 0:00:04]} 8. Nxd4 {[%emt 0:00:03]} Bc5 {[%emt 0:00:10]} 9. Nb3 {[%emt 0:01:36]} Nc6 {[%emt 0:00:03]} 10. Bf4 {[%emt 0:09:18]} e5 {[%emt 0:03:06]} 11. Bg5 {[%emt 0:02:33]} Nd4 {[%emt 0:00:45]} 12. Nxd4 {[%emt 0:03:19]} exd4 {[%emt 0:06:55]} 13. Nd5 {[%emt 0:03:33]} Bxd5 {[%emt 0:00:05]} 14. cxd5 {[%emt 0:11:46]} Rc8 {[%emt 0:13:49]} 15. Qd1 {[%emt 0:03:58]} b5 {[%emt 0:16:17]} 16. Bd3 {[%emt 0:17:37]} b4 {[%emt 0:11:12]} 17. O-O {[%emt 0:00:53]} h6 {[%emt 0:05:35]} 18. Bh4 {[%emt 0:04:42]} bxa3 {[%emt 0:01:56]} 19. bxa3 {[%emt 0:00:12]} Be7 {[%emt 0:07:39]} 20. d6 {[%emt 0:03:56]} Bxd6 {[%emt 0:06:26]} 21. e5 {[%emt 0:00:05]} Bxe5 {[%emt 0:00:49]} 22. Re1 {[%emt 0:00:14]} Qa5 {[%emt 0:04:37]} 23. f4 {[%emt 0:01:36]} d6 {[%emt 0:00:36]} 24. fxe5 {[%emt 0:00:33]} dxe5 {[%emt 0:00:03]} 25. Bf5 {[%emt 0:09:20]} Rd8 {[%emt 0:04:10]} 26. Qf3 {[%emt 0:02:28]} Kf8 {[%emt 0:03:00]} 27. Rac1 {[%emt 0:08:12]} Re8 {[%emt 0:04:07]} 28. Bxf6 {[%emt 0:00:43]} gxf6 {[%emt 0:00:01]} 29. Bd7 {[%emt 0:00:20]} d3 {[%emt 0:00:58]} 30. Qxf6 {[%emt 0:05:12]} Rh7 {[%emt 0:01:05]} 31. Qd6+ {[%emt 0:01:29]} Re7 {[%emt 0:03:00]} 32. Qxd3 {[%emt 0:01:01]} f6 {[%emt 0:01:44]} 33. Rc8+ {[%emt 0:00:27]} Kg7 {[%emt 0:00:04]} 34. Qg3+ {[%emt 0:00:13]} 1-0